{"text_format":"3","workbook":"xlsx","n_sheets":1,"sheets":["Bảng tổng hợp kết quả_Khoa"],"not_rendered":{"defined_names":2},"read":"whole","date_system":"1900"}

{"sheet":"Bảng tổng hợp kết quả_Khoa","index":0,"n_rows":82,"n_cols":15,"rows_kept":82,"merged":[[0,0,0,1],[0,2,0,14],[1,2,1,14],[2,2,2,14],[4,0,4,14],[6,0,6,14],[8,0,9,0],[8,1,9,1],[8,2,9,2],[8,3,9,3],[8,4,9,4],[8,5,9,5],[8,6,9,6],[8,7,8,13],[8,14,9,14],[71,0,71,6],[75,10,75,14],[81,10,81,14]]}
["KHOA KINH TẾ VÀ QUẢN LÝ",null,"CỘNG HÒA XÃ HỘI CHỦ NGHĨA VIỆT NAM"]
[null,null,"Độc lập - Tự do - Hạnh phúc"]
[null,null,"Hà Nội, ngày        tháng     năm "]
[]
["TỔNG HỢP KẾT QUẢ ĐÁNH GIÁ ĐỀ TÀI NCKH CỦA SINH VIÊN\nTẠI HỘI NGHỊ KHOA HỌC SINH VIÊN CẤP KHOA\nNăm học 2023 - 2024"]
[]
["Kính gửi: Phòng Khoa học công nghệ và Hợp tác quốc tế"]
[]
["TT","Tên đề tài","SVTH","Lớp","Khoa","GVHD","Bộ môn","Điểm đánh giá các tiêu chí",{"$nulls":6},"Ghi chú (đạt giải Nhất, Nhì, Ba nếu có)"]
[{"$nulls":7},"Điểm TB","Tổng quan và sự cần thiết của ĐT","Nội dung  nghiên cứu","Phương pháp nghiên cứu","Kết quả nghiên cứu","Trình bày báo cáo và trả lời câu hỏi ","Có sản phẩm công bố (ghi cụ thể)"]
[1,"Tác động của FDI tới tăng trưởng TFP xanh cấp tỉnh của Việt Nam ","Trần Thị Thu Hiền\nTrịnh Minh Nhật\nPhạm Nguyễn Thùy Trang","63K-QT\n63K-QT\n63K-ĐT","Kinh tế và quản lý","TS. Phùng Mai Lan\nThS. Nguyễn Thùy Trang","Kinh tế",{"$f":"AVERAGE(I11:M11)","v":9},9,9,9,9,9,null,"Giải Nhất"]
[2,"Những nhân tố ảnh hưởng tới việc thu hẹp khoảng cách giới trong tài chính toàn diện: bằng chứng thực nghiệm tại nhiều quốc gia và một số khuyến nghị cho Việt Nam","Hoàng Hiền Giang\nTạ Đình Đồng\nCấn Thị Thanh Hiền\nKhuất Thu Hương","64K1","Kinh tế và quản lý","ThS. Nguyễn Thu Hằng","Tài chính",90,9,18,15,39,9,null,"Giải Nhất"]
[3,"Nghiên cứu đánh giá các nhân tố rủi ro đến đầu tư xây dựng dân dụng tại thành phố Hà Nội","Nguyễn Thị Thùy Dương\nNgô Thị Lâm Trà \nNguyễn Thu Trang","64KTXD1\n64KTXD1\n63QLXD1","Kinh tế và quản lý","PGS.TS. Nguyễn Thiện Dũng","Kinh tế xây dựng",{"$f":"SUM(I13:N13)","v":90},9,19,15,38,9,null,"Giải Nhất"]
[4,"Nghiên cứu các yếu tố ảnh hưởng đến hành vi mua sắm trực tuyến của người dân Hà Nội","Vương Trí Thị Trang","64QT2","Kinh tế và quản lý","TS. Nguyễn Thùy Linh","Quản trị kinh doanh",89.25,9,19,14.75,36.5,10,null,"Giải Nhất"]
[5,"Phát triển Logistics ngược trong ngành may mặc ở Việt Nam","Nguyễn Hương Giang\nNguyễn Xuân Nghĩa\nĐào HuyềnTrang","63LG1\n63LG1\n63LG1","Kinh tế và quản lý","TS. Đỗ Thanh Thư\nTS. Đặng Thanh Phương","Logistics",{"$f":"SUM(I15:N15)","v":89.4},9,18.2,14.6,37.6,10,0,"Giải Nhất"]
[6,"Xây dựng mô hình Dự báo biến động giá vật liệu xây dựng trên địa bàn thành phố Hà Nội","Vũ Hồng Anh\nHoàng Khánh Chi\nLê Thị Ngọc","64KTXD4\n64KTXD4\n64KTXD4","Kinh tế và quản lý","\nTS. Đỗ Văn Chính\nThS. Trần Văn Khiêm","Kinh tế xây dựng",{"$f":"SUM(I16:N16)","v":88},9,19,14,38,8,null,"Giải nhì"]
[7,"Nghiên cứu tác động sự chứng thực của người nổi tiếng lên quyết định mua hàng của người tiêu dùng trên địa bàn thành phố Hà Nội","Đỗ Tuyết My\nNguyễn Thị Kiều Oanh\nNguyễn Thị Hà Trang\nDương Thị Hà\nTrần Thị Thu Hà\n","64QT2\n64QT2\n64QT2\n64QT2\n64QT2","Kinh tế và quản lý","TS. Đàm Thị Thủy\nTS Triệu Đình Phương","Quản trị kinh doanh",86.25,8.75,17.5,14.75,36,9.25,null,"Giải nhì"]
[8,"Những nhân tố ảnh hưởng đến hành vi đạo đức nghề nghiệp kế toán","Nguyễn Thị Thuý Hằng\nLê Thu Cúc\nNguyễn Thị Thuỳ Linh","62KT3","Kinh tế và quản lý","TS. Lê Thị Tâm","Kế toán",88,8,18,15,38,9,null,"Giải nhì"]
[9,"Nghiên cứu những yếu tố của Influencer Marketing ảnh hưởng đến quyết định mua hàng trực tuyến của khách hàng gen Z tại Hà Nội","Đặng Thái Sơn","63 TMDT1","Kinh tế và quản lý","ThS. Nguyễn Phương Linh","Thương mại điện tử",{"$f":"AVERAGE(I19:M19)","v":8.8},9,9,9,8,9,null,"Giải nhì"]
[10,"Thực trạng và một số giải pháp cải thiện sức khỏe tâm thần của sinh viên trường Đại học Thủy lợi","Nguyễn Huy Hoàng\nĐặng Dung Nhi\nHoàng Thanh Hằng","64 Luật 1\n64 Luật 1\n64 Luật 1","Kinh tế và quản lý","TS. Phạm Thị Hải Yến\n","Phát triển kỹ năng",{"$f":"SUM(I20:N20)","v":87.8},8.8,18.2,14.4,36.4,10,0,"Giải nhì"]
[11,"Nghiên cứu các nhân tố ảnh hưởng đến công tác lập và áp dụng định mức trong doanh nghiệp quản lý khai thác các công trình thuỷ lợi tỉnh Hưng Yên","Nguyễn Thanh Huyền\nLâm Hải Hoà\nNguyễn Thanh Tuyền\nĐỗ Thành Long\n","63KTXD1\n63KTXD1\n63KTXD1\n63QLXD2","Kinh tế và quản lý","TS. Lê Minh Thoa","Kinh tế xây dựng",{"$f":"SUM(I21:M21)","v":86},9,18,12,38,9,null,"Giải ba"]
[12,"Nhu cầu sử dụng nước sinh hoạt và mức sẵn sàng chi trả của người dân ở Xã Đồng Thái, Huyện Ba Vì, Hà Nội.","Phạm Thị Hường\nDoãn Văn Giáp\nChu Thị Ngọc Hân\nTrịnh Anh Tuấn","64KTXD2\n64KTXD2\n64KTXD2\n64KTXD2","Kinh tế và quản lý","\nTS. Bùi Anh Tú\nThS. Trần Văn Khiêm","Kinh tế xây dựng",{"$f":"SUM(I22:N22)","v":86},9,19,14,35,9,null,"Giải ba"]
[13,"Nghiên cứu, đánh giá tầm ảnh hưởng của thương hiệu nhà tuyển dụng đến sự gắn kết trong công việc của người lao động\n\n","Nguyễn Hương Quỳnh\nNguyễn Thị Trà My\nNghiêm Đức Huy\nNguyễn Hoàng Hà","63QT-KDQT1","Kinh tế và quản lý","TS.Đàm Thị Thủy","Quản trị kinh doanh",86,8.2,18,14.6,35.8,9.4,null,"Giải ba"]
[14,"Nghiên cứu các nhân tố ảnh hưởng đến ý định sử dụng các dịch vụ nghe nhạc trực tuyến có trả tiền của sinh viên - Nghiên cứu tại trường Đại học Thuỷ lợi\n","Trịnh Hồng Chuyên\nNguyễn Thu Giang\nNguyễn Mai Linh","63 QTMAR1","Kinh tế và quản lý","TS. Đặng Thị Minh Thùy\n","Quản trị kinh doanh",86,8.75,18,14.5,35.5,"9,25",null,"Giải ba"]
[15,"Tăng trưởng năng suất khu vực ngân hàng thương mại Việt Nam giai đoạn Covid - 19","Trần Thị Trà My\nNguyễn Khánh Nga\nPhạm Bích Ngọc\nNguyễn Thanh Xuân\nĐào Thị Thu Hoài ","64TCNH1","Kinh tế và quản lý","TS. Lê Thanh Phương","Tài chính",87,8,19,15,37,8,null,"Giải Ba"]
[16,"Nghiên cứu mô hình “hành vi điều chỉnh lợi nhuận trên báo cáo tài chính”","Nguyễn Trung Anh\nPhạm Ngọc Bích\nPhạm Huyền Diệp\nNguyễn Ngọc Linh","63KT2\n63KT1\n63KT1\n63KT1","Kinh tế và quản lý","TS. Tô Minh Hương &\nTS. Nguyễn Thị Huyền","Tài chính",87,9,18,15,36,9,null,"Giải Ba"]
[17,"Nghiên cứu mô hình tác động của kỹ năng số đến khả năng tìm việc làm của sinh viên sau khi tốt nghiệp trên địa bàn TP Hà Nội","Nguyễn Thị Hoài Ngọc \nPhạm Bùi Phương Duyên\nHoàng Trang Linh\nNguyễn Đình Thu Trang","64KTS3\n64KTS3\n64KTS3\n64KTS3","Kinh tế và quản lý","TS. Phùng Tuấn Anh\nThS. Trần Đình Ngọc","Kinh tế và Kinh doanh số",{"$f":"AVERAGE(I27:N27)","v":{"v":8.666666666666666,"d":"8.7"}},10,10,9,9,9,5,"Đạt giải Ba"]
[18,"Nghiên cứu về sự hài lòng của khách nội địa qua trải nghiệm tour du lịch đêm tại Văn Miếu Quốc Tử Giám","Bùi Nguyễn Hoài Linh\nĐỗ Thị Hồng Liên\nTrần Hương Lan\nNguyễn Thị Hà","63QTDL1 63QTDL1 63QTDL2 65QTDL2","Kinh tế và quản lý","TS. Lê Mạnh Hùng","Quản trị du lịch",{"$f":"SUM(I28:N28)","v":87.19999999999999},8.6,18.2,14,36.4,10,0,"Giải Ba"]
[19,"Ước lượng đường cầu và giá trị kinh tế của việc sử dụng nước tưới trên địa bàn xã Xuân Hồng - Nghi Xuân - Hà Tĩnh","Nguyễn Thị Quỳnh Anh\nHà Hương Giang\nĐào Bá Lượng\nNguyễn Thu Phương","64KTXD2\n64KTXD2\n64KTXD2\n64KTXD2","Kinh tế và quản lý","\nTS. Bùi Anh Tú\nThS. Trần Văn Khiêm","Kinh tế xây dựng",{"$f":"SUM(I29:N29)","v":80},8,19,14,31,8]
[20,"Nghiên cứu các nhân tố ảnh hưởng đến công tác quản lý đấu thầu tại Sở Kế hoạch và Đầu tư tỉnh Vĩnh Phúc","Kim Hải Thanh\nTrần Công Danh\nLê Thành Công\nTrần Thị Ngọc Mai\nĐỗ Thị Thảo Vy","63QLXD2\n63QLXD2\n63QLXD2\n63QLXD2\n63QLXD2","Kinh tế và quản lý","TS. Lê Minh Thoa","Kinh tế xây dựng",{"$f":"SUM(I30:N30)","v":80},8,18,14,32,8]
[21,"Phân tích hiệu quả dự án đầu tư Nhà máy sản xuất hạt phụ gia chất độn tại thị xã Cửa Lò, tỉnh Nghệ An","Nguyễn Thanh Huyền ","63KTXD1\n","Kinh tế và quản lý","PGS.TS. Nguyễn Thiện Dũng","Kinh tế xây dựng",{"$f":"SUM(I31:N31)","v":82},8,19,14,33,8]
[22,"Đánh giá hiệu quả dự án hoàn thành đưa vào sử dụng dự án \"Khôi phục, nâng cấp hệ thống thủy lợi Bắc Nghệ An","Nguyễn Ánh Dương\nLê Thị Song","64KTXD3\n64KTXD3","Kinh tế và quản lý","TS. Đỗ Văn Chính","Kinh tế xây dựng",80,8,17,14,33,8]
[23,"Nghiên cứu các nhân tố ảnh hưởng đến công tác quản lý dự án đầu tư xây dựng thông minh ở thành phố Hà Nội","Phạm Hà Hương\nNguyễn Hương Giang","63KTXD3\n63KTXD3","Kinh tế và quản lý","TS. Lê Minh Thoa","Kinh tế xây dựng",80,8,17,14,33,8]
[24,"Nghiên cứu lợi ích và thách thức trong việc thực hiện công tác đấu thầu điện tử trong lĩnh vực xây dựng tại Việt Nam","Bùi Thị Hồng Dung\nLê Đặng Hùng\nBùi Thị Hương","63KTXD3\n63KTXD3\n63KTXD3","Kinh tế và quản lý","ThS. Phùng Duy Hảo\nThS. Nguyễn Thị Thủy","Kinh tế xây dựng",{"$f":"SUM(I34:N34)","v":80},8,18,14,32,8]
[25,"Ước lượng mức sẵn lòng chi trả cho sử dụng nước sạch của người dân tại huyện Chương Mỹ, thành phố Hà Nội","Đào Khánh Trang\nTrần Việt Hùng\nPhạm Minh Công\nNguyễn Phương Thảo","64KTXD3\n64KTXD3\n64KTXD3\n63KTXD2","Kinh tế và quản lý","PGS. TS Nguyễn Thiện Dũng\nThS. Trần Văn Khiêm","Kinh tế xây dựng",{"$f":"SUM(I35:N35)","v":85},9,19,14,35,8]
[26,"Nghiên cứu các nhân tố ảnh hưởng đến đầu tư xây ng và kinh doanh Homestay thông minh của các doanh nghiệp trên địa bàn thành phố Hà Nội","Phạm Thị Thu Thanh\nNgô Thị Tâm\nVũ Thị Minh Thương","64KTXD1\n64KTXD1\n64KTXD1","Kinh tế và quản lý","TS. Lê Minh Thoa","Kinh tế xây dựng",84,9,19,14,34,8]
[27,"Các nhân tố ảnh hưởng đến quyết định mua thực phẩm tại các cửa hàng thực phẩm sạch của người tiêu dùng trên địa bàn thành phố Hà Nội","Nguyễn Thu Anh\nPhạm Thị Minh Phượng","63QT-KDQT2","Kinh tế và quản lý","ThS.Nguyễn Thanh Huệ","Quản trị kinh doanh",84,8.4,18.4,13.4,34,9.8]
[28,"Tác động của chuyển đổi số đến hiệu quả hoạt động của ngân hàng Thương mại tại Việt Nam","Nguyễn Tuấn Bình \nLê Văn Kỳ \nLê Duy Khánh\nTrần Lệ Anh\n\n","65TCNH1","Kinh tế và quản lý","ThS. Trần Thị Hồng\n\n","Kiểm toán",80.4,8.2,17.8,12.8,32.2,9.4]
[29,"Nghiên cứu tác động của hoạt động truyền thông mạng xã hội đến nhận thức của sinh viên khoa Kinh tế&Quản lý đối với thương hiệu Trường Đại học Thuỷ lợi\n","Nguyễn Thị Hương Trà\nNguyễn Trung Đức\nNguyễn Thị Ngọc Diệp\n","63QTMAR1\n64 QT1\n64 QT1\n","Kinh tế và quản lý","TS. Đặng Thị Minh Thuỳ\n","Quản trị kinh doanh",81,8.25,17.5,14.25,34.25,8.5]
[30,"Nghiên cứu xây dựng bộ nhận diện thương hiệu Trường Đại học Thuỷ Lợi","Nguyễn Minh Phương\nTrần Khánh Ly\nĐỗ Minh Tuyền\nLê Hồng Nhung\n\n","63QT-KDQT2\n63QT-MAR2\n63QT-MAR2\n63QT-MAR1\n","Kinh tế và quản lý","ThS. Nguyễn Thị Hương\n\n","Quản trị kinh doanh",75.8,7.6,16.2,15.2,30.8,9.2]
[31,"Nghiên cứu ý định khởi nghiệp kinh doanh trực tuyến của sinh viên Đại học Thủy Lợi ","Đỗ Thị Thu Huyền\nĐinh Thị Hương Giang\nNguyễn Thu Hiền\nBùi Thị Thanh Huyền\n","64QT2","Kinh tế và quản lý","TS. Nguyễn Thùy Linh","Quản trị kinh doanh",84.25,8.25,15.25,14.75,34.25,9.25]
[32,"Vai trò của công nghệ 3D mapping trong việc hình hành ý định tham quan điểm đến di sản tại Hà Nội\"","Nguyễn Hoài Ngọc\nNguyễn Thanh Giang\nPhan Thị Thương\nNguyễn Thị Khánh Linh","63QTMAR1","Kinh tế và quản lý","TS. Nguyễn Thị Huyền\n\n","Quản trị kinh doanh",84.4,8,16,14.2,35.4,8.8]
[33,"Nghiên cứu sự tiếp cận của sinh viên Kinh tế trường Đại học Thủy Lợi về Kiểm toán từ xa","Lương Phương Nhung\nPhan Hồng Ngọc\nLương Thị Thanh Trà\nPhạm Quỳnh Chúc\nPhạm Ngân Hà\n","64KTA2","Kinh tế và quản lý","NCS. ThS. Lê Thị Hậu\n\n","Kiểm toán\n\n\n",76.8,7.6,16,12.2,31.8,9.2]
[34,"Nghiên cứu những yếu tố ảnh hưởng đến hành vi mua sắm bốc đồng trên TikTok của Gen Z tại địa bàn Hà Nội","Bùi Đức Minh\nBùi Phương Linh\nPhan Thu Huyền\nLâm Phương Thảo","64K3\n64KTXD1\n64K3\n63KT1","Kinh tế và quản lý","TS. Đàm Thị Thủy\nTS Triệu Đình Phương","Quản trị kinh doanh",85,8.5,15.25,14.25,35.25,9.25]
[35,"Nghiên cứu thực trạng chi tiêu công tại Việt Nam giai đoạn 2018-2022","Nguyễn Thu Hiền\nĐào Thị Thương\nLê Minh Châu\nTrần Hương Giang                                                           ","64TCNH2","Kinh tế và quản lý","TS. Hoàng Thị Mai Anh","Tài chính",79,8,15,15,36,7]
[36,"Nghiên cứu tác động của các yếu tố kinh tế vĩ mô tới thị trường chứng khoán Việt Nam ","Lê Thị Hằng\nKiều Trà My","63LG2\n64LG1\n","Kinh tế và quản lý","ThS. Nguyễn Thị Vân Anh","Tài chính",81,8,16,12,37,8]
[37,"Nghiên cứu về chuyển đổi số trong kế toán quản trị của doanh nghiệp nhỏ và siêu nhỏ tại thành phố Hà Nội","Nguyễn Ngọc Huyền\nLê Thuý Hằng\n","63KT3","Kinh tế và quản lý","TS. Tô Minh Hương &\nTS. Nguyễn Thị Huyền","Kế toán",84,8,18,15,35,8]
[38,"Thực trạng thực hiện trách nhiệm xã hội của các doanh nghiệp tại Việt Nam","Vũ Thị Vân\nBùi Thị Trang\nNgọc Thị Minh Trang\nHoàng Thị Hồng Ngọc\nNguyễn Thị Huyền Trang","65TCNH2","Kinh tế và quản lý","TS. Hoàng Thị Mai Anh &\nThS. Nguyễn Thị Vân Anh","Tài chính",78,8,17,13,33,7]
[39,"Covid-19 và hoạt động kinh doanh liên tục của\ndoanh nghiệp nhỏ và vừa ngành bán lẻ Việt Nam","Trần Nguyễn Minh Hằng\nTrần Hồng Ngọc\nĐào Phương Trà\n","64TCNH2","Kinh tế và quản lý","TS. Đào Thị Hương","Tài chính",86,8,18,14,37,9]
[40,"Nghiên cứu thói quen chi tiêu của sinh viên trường Đại học Thủy Lợi","Nguyễn Tùng Dương\nNguyễn Thị Thu Hằng\nVũ Thị Thanh\nNguyễn Việt Quang","65TCNH1","Kinh tế và quản lý","TS. Vũ Thị Phương Thảo &\nThS. Nguyễn Thu Hằng","Tài chính",81,8,18,13,35,7]
[41,"Thực trạng và giải pháp thúc đẩy hoạt động thanh toán không dùng tiền mặt tại Việt Nam","Phùng Quang Huy\nNguyễn Ngọc Anh Tuấn\nHồ Thị Hà\nĐỗ Trung Kiên","65TCNH1","Kinh tế và quản lý","TS. Vũ Thị Phương Thảo   ","Tài chính",82,8,18,14,34,8]
[42,"Nghiên cứu các nhân tố ảnh hưởng đến sự hài lòng của khách hàng cá nhân khi sử dụng dịch vụ tín dụng tại ngân hàng TMCP quân đội – chi nhánh Hà Nội","Phạm Việt Cường\nChu Ngọc Ánh\nBùi Thị Ngân\nLê Thị Mai Linh\nĐỗ Hải Đăng","64TCNH1","Kinh tế và quản lý","TS. Tô Minh Hương &\nTS. Nguyễn Thị Huyền","Tài chính",85,8,18,15,36,8]
[43,"Phân tích ảnh hưởng của chính sách thuế thu nhập cá nhân với hành vi chi tiêu của sinh viên Thủy Lợi mới ra trường","Vũ Thị Thuỷ\nTrần Thị Quỳnh\nPhạm Thị Hồng Tâm","64KTA1","Kinh tế và quản lý","ThS. Trần Thị Hồng &\nTS. Lê Thị Tâm","Kế toán",78,7,18,13,34,6]
[44,"Nghiên cứu các nhân tố ảnh hưởng đến khả năng áp dụng kế toán tinh gọn tại các doanh nghiệp may Việt Nam","Dương Thị Thu Trang\nPhạm Thị Xuân\nNguyễn Thị Trà My","63KT3","Kinh tế và quản lý","ThS. Ngô Thị Hải Châu","Kế toán",86,8,17,15,37,9]
[45,"Nghiên cứu những yếu tố của Omnichannel ảnh hưởng đến trải nghiệm của khách hàng gen Z trong ngành hàng bán lẻ tại Hà Nội","Đặng Thái Sơn","63 TMDT1","Kinh tế và quản lý","ThS. Nguyễn Phương Linh","Thương mại điện tử",{"$f":"AVERAGE(I55:M55)","v":8.6},9,8,8,9,9]
[46,"Nghiên cứu tác động của đầu tư công đến tăng trưởng kinh tế của Việt Nam","Nguyễn Thu Duyên\nPhạm Nguyễn Thu Trang","63K-ĐT\nK-ĐT","Kinh tế và quản lý","Ths. Trần Khắc Ninh","Kinh tế",8.4,9,8,8,8,9]
[47,"Áp dụng phương pháp tiếp cận mô hình chấp nhận công nghệ mở rộng (TAM) trong việc đánh giá phản hồi cảm xúc của khách hàng trực tuyến","Trịnh Thị Dung\nNguyễn Thị Ngọc Anh \nTrương Quốc Trung","63 TMDT1\n63 TMDT1\n63 TMDT1","Kinh tế và quản lý","ThS.Bùi Thị Giang","Thương mại điện tử",8.4,9,8,8,8,9]
[48,"Nghiên mô hình các yếu tố của SEO ảnh hưởng tới ý định mua hàng trực tuyến của người tiêu dùng tại khu vực Hà Nội","Đàm Trang Nhung\nTrần Minh Hạnh\nNguyễn Thị Kiều Loan","64TMDT1\n64TMDT1\n64TMDT1","Kinh tế và quản lý","ThS. Đỗ Thị Dịu ","Thương mại điện tử",8.4,9,8,8,8,9]
[49,"Ảnh hưởng của mạng xã hội TikTok tới quyết định lựa chọn ngành nghề của học sinh sinh viên trong thời đại số","Nguyễn Thu Trang\nNguyễn Phương Giang\nTrịnh Minh Nhật\nVũ Minh Đức\n","63K-PT\n63K-QT\n63K-QT\n65K2","Kinh tế và quản lý","PGS.TS. Trương Đức Toàn\nThS. Trần Thị Ngọc Tú","Kinh tế",8.6,9,9,8,8,9]
[50,"Nghiên cứu tác động của Chatbot AI trong việc tăng cường trải nghiệm mua sắm trực tuyến của khách hàng trên địa bàn Hà Nội ","Trần Thị Ánh Duyên\nPhùng Minh Lực \nLưu Thanh Tâm \nNguyễn Thị Hồng Thắm \nNguyễn Công Tiến","64KTS2\n63QT-Mar1\n63QT-Mar2\n65KTS\n64KTS2\n","Kinh tế và quản lý","TS. Nguyễn Thị Oanh \nThS. Đỗ Nguyệt Minh","Kinh tế và kinh doanh số",8.6,9,9,8,8,9]
[51,"Ứng dụng mô hình cấu trúc tuyến tính đo lường tác động của các yếu tố đến rủi ro phá sản của doanh nghiệp trong bối cảnh khủng hoảng kinh tế xã hội ở Việt Nam","Lê Thị Trang\nVũ Thị Hương Giang\nLê Thùy Linh\nNguyễn Văn Hải\n","63K-QT \n63K-QT \n65K1 \n65K1","Kinh tế và quản lý","PGS.TS. Trương Đức Toàn\nCN. Vũ Trà My","Kinh tế",8.2,9,8,8,8,8]
[52,"Nghiên cứu  nhân tố ảnh hưởng đến hành vi thanh toán bằng ví trả sau trong quyết định mua hàng trực tuyến của sinh viên trường Đại học Thủy Lợi","Lê Thị Thùy Linh \nPhạm Thị Thanh Thảo\nDương Ánh Minh\nNguyễn Châu Anh ","63TMDT2\n63TMDT2\n63TMDT2\n64TMDT2","Kinh tế và quản lý","ThS. Nguyễn Phương Linh","Thương mại điện tử",8.4,9,8,8,8,9]
[53,"Tác động của chỉ số mức độ phát triển công nghệ thông tin và truyền thông (ICT) đến tăng trưởng kinh tế của Vùng kinh tế trọng điểm Bắc Bộ Việt Nam","Vũ Hương Giang\nĐặng Thị Quỳnh Giang\nĐặng Thị Thúy Hiền\nTrần Ngọc Lương\n","63K-ĐT\n63K-ĐT\n63K-ĐT\n63K-ĐT","Kinh tế và quản lý","ThS. Lâm Thị Thùy Linh\nThS. Trần Thị Ngọc Tú","Kinh tế",8.6,9,9,8,8,9]
[54,"Nhận thức của sinh viên trường Đại học Thủy lợi về an toàn tình dục hiện nay","Nguyễn Thị Thu Anh\nNguyễn Thị Phương Anh\nPhạm Thị Kiều Anh\nHoàng Thị Đào\nTrần Thị Lan Anh","65 Luật 1\n65 Luật 1\n65 Luật 1\n65 Luật 1\n65 Luật 1","Kinh tế và quản lý","TS. Bùi Thị Phương Thảo\nTS. Phạm Thị Hải Yến","Phát triển kỹ năng",{"$f":"SUM(I64:N64)","v":84},8,17.8,13.2,35,10,0]
[55,"Nhu cầu tham gia hoạt động tình nguyện của sinh viên trường đại học Thủy Lợi","Trần Nam Anh\nĐoàn Diệu Linh\nNguyễn Quỳnh Anh","65KT\n63NNA1\n65KT","Kinh tế và quản lý","TS. Phạm Thị Hải Yến\nThS. Vũ Huy Vĩ\n","Phát triển kỹ năng",{"$f":"SUM(I65:N65)","v":84.6},8,18,13.4,35.2,10,0]
[56,"Tâm thế của sinh viên Khoa Kinh tế và Quản lý trường Đại học Thủy lợi trước khi ra trường","Nguyễn Thị Thu Duyên\nNguyễn Thị Nguyệt\nPhạm Thị Minh Phượng\nVăn Thị Trang Nhung","63K-ĐT\n63K- ĐT\n63QT-KDQT2\n63K- QT","Kinh tế và quản lý","ThS. Trương Thị Hương","Phát triển kỹ năng",82.6,8,17.8,13,33.8,10,0]
[57,"Nhu cầu tham vấn tâm lý của sinh viên trường đại học Thủy lợi","Bùi Thị Hồng Dung","63KTXD3\t","Kinh tế và quản lý","ThS. Bùi Thị Thu Huế","Phát triển kỹ năng",82.4,8,17.8,13,33.6,10,0]
[58,"Nghiên cứu quảng bá hình ảnh điểm đến du lịch văn hóa ở Văn miếu Quốc Tử Giám","Nguyễn Thị Kim Chi\nVũ Thị Phương Chi\nNgô Bích Hạnh\nNguyễn Thị Lê Na\nĐặng Minh Đức","64 QTDL2\n64 QTDL2\n64 QTDL2\n64 QTDL2\n64 QTDL2","Kinh tế và quản lý","TS. Lê Mạnh Hùng","Quản trị du lịch",{"$f":"SUM(I68:N68)","v":82},8,17.8,13,33.2,10,0]
[59,"Đánh giá tiềm năng du lịch sức khỏe ở Việt Nam: trường hợp ở suối khoáng Kim Bôi - Hoà Bình","Nguyễn Hoàng Việt Anh\nVũ Bạch Thảo","64 QTDL1\n64 QTDL1","Kinh tế và quản lý","TS. Nguyễn Thị Phương Nga \nThS Vũ Ngọc Thư","Quản trị du lịch",{"$f":"SUM(I69:N69)","v":82.8},8,17.4,13.4,34,10,0]
[60,"Nghiên cứu các yếu tố ảnh hưởng đến việc lựa chọn dịch vụ học tiếng Anh trực tuyến của sinh viên ngành Kế toán trường Đại học Thủy Lợi","Đặng Thị Hương Giang\nLê Thị Huệ\nĐinh Thị Thùy Linh\nCao Hồng Thủy","64KT2\n64KT1\n64KT1\n64KT2","Kinh tế và quản lý","Phạm Thị Phương Thảo ","Phát triển kỹ năng",{"$f":"SUM(I70:N70)","v":86},8.6,17.8,13.8,35.8,10,0]
["Lưu ý: Điểm của thành viên hội đồng chênh lệch >15 điểm so với điểm trung bình ban đầu coi là là điểm không hợp lệ và không được tính vào tổng số điểm hợp lệ "]
["Mỗi khoa đề xuất tối đa 01 báo cáo tham gia xét giải cấp Trường"]
[]
["Báo cáo đề nghị xét giải cấp Trường: Tác động của FDI tới tăng trưởng TFP xanh cấp tỉnh của Việt Nam "]
[]
[null,"THƯ KÝ",{"$nulls":8},"BAN CHỦ NHIÊM  KHOA"]
[]
[]
[]
[]
[]
[{"$nulls":10},"PGS. TS Lê Văn Chính"]